bitfinex/quotes_SOLUSD_20250415
["timestamp","ask_amount","ask_price","bid_price","bid_amount"]
[1744683120146,7.6825,130.17,130.12,20.77115128]
[1744683120331,7.6825,130.17,130.13,13.08595128]
[1744683120641,13.08595128,130.16,130.12,13.08595128]
[1744683121341,0.14175695,130.13,130.12,13.08595128]
[1744683122043,0.14175695,130.13,130.1,13.08595128]
[1744683122225,0.14175695,130.13,130.11,13.08595128]
[1744683123150,0.14175695,130.13,130.12,13.08595128]
[1744683123549,0.14175695,130.13,130.12,20.77115128]
[1744683124844,0.14175695,130.13,130.1,13.08595128]
[1744683125246,0.14175695,130.13,130.1,20.77215128]
[1744683125547,0.14175695,130.13,130.11,13.08595128]
[1744683127126,0.14175695,130.13,130.1,7.6862]
[1744683127429,0.14175695,130.13,130.12,20.77115128]
[1744683127945,0.14175695,130.13,130.12,39.98944642]
[1744683128155,0.14175695,130.13,130.12,137.7378977]
[1744683129241,1e-08,130.13,130.12,137.7378977]
[1744683129436,1e-08,130.13,130.12,41.08330014]
[1744683129833,1e-08,130.13,130.12,20.77115128]
[1744683130155,1e-08,130.13,130.11,13.08595128]
[1744683130754,13.08595129,130.13,130.09,13.08595128]
[1744683130939,1e-08,130.13,130.09,13.08595128]
[1744683131139,1e-08,130.13,130.1,20.94875324]
[1744683131453,1e-08,130.13,130.09,28.63515324]
[1744683131760,1e-08,130.13,130.09,20.94875324]
[1744683132353,1e-08,130.13,130.09,28.63565324]
[1744683133263,1e-08,130.13,130.09,20.94875324]
[1744683134238,1e-08,130.13,130.09,28.63565324]
[1744683134540,1e-08,130.13,130.1,20.94875324]
[1744683137357,1e-08,130.13,130.1,28.63505324]
[1744683138765,1e-08,130.13,130.12,20.94875324]
[1744683140264,7.6829,130.16,130.12,20.94875324]
[1744683140644,28.63165324,130.16,130.11,28.63405324]
[1744683141156,20.94875324,130.14,130.08,83.0]
[1744683141366,0.15958266,130.12,130.08,20.94875324]
[1744683141556,21.1083359,130.12,130.08,20.94875324]
[1744683141948,0.15958266,130.12,130.08,20.94875324]
[1744683142154,0.15958266,130.12,130.11,20.94875324]
[1744683142872,0.15958266,130.12,130.1,20.94875324]
[1744683144449,0.15958266,130.12,130.11,39.5984021]
[1744683144648,0.15805729,130.15,130.14,44.64964886]
[1744683144851,0.15805729,130.15,130.14,65.5984021]
[1744683145050,0.15805729,130.15,130.14,73.2824021]
[1744683147969,5.556e-05,130.16,130.14,168.01104838]
[1744683148162,0.17155226,130.19,130.17,44.933972]
[1744683148361,0.17155226,130.19,130.17,66.16704838]
[1744683149059,0.17155226,130.19,130.17,73.84924838]
[1744683149269,0.17155226,130.19,130.17,54.63095324]
[1744683149573,0.17155226,130.19,130.16,20.94875324]
[1744683149947,0.17155226,130.19,130.17,20.94875324]
[1744683151174,0.17155226,130.19,130.16,26.33204886]
[1744683151356,0.17155226,130.19,130.16,28.63115324]
[1744683151675,0.17155226,130.19,130.17,20.94875324]
[1744683153175,0.17155226,130.19,130.17,13.07852678]
[1744683155880,0.17155226,130.19,130.17,20.76072678]
[1744683156184,0.17155226,130.19,130.17,39.97902192]
[1744683156385,0.17155226,130.19,130.17,46.61932192]
[1744683157185,0.17155226,130.19,130.17,39.97902192]
[1744683157678,0.17155226,130.19,130.17,39.41037564]
[1744683160274,0.03,130.18,130.17,39.41037564]
[1744683161280,0.17273981,130.18,130.17,39.41037564]
[1744683165191,0.17273981,130.18,130.16,20.76112678]
[1744683165386,13.25126659,130.18,130.12,12.695]
[1744683165587,13.25126659,130.18,130.13,13.07852678]
[1744683165987,13.25126659,130.18,130.14,13.07852678]
[1744683166373,20.93286659,130.18,130.14,13.07852678]
[1744683166581,20.93286659,130.18,130.13,13.07852678]
[1744683168187,20.93286659,130.18,130.14,13.07852678]
[1744683168489,7.85433981,130.18,130.14,13.07852678]
[1744683169564,20.93286659,130.18,130.14,13.07852678]
[1744683170393,0.17273981,130.18,130.15,13.07852678]
[1744683170688,0.17273981,130.18,130.16,13.07852678]
[1744683171790,0.17273981,130.18,130.17,13.07852678]
[1744683172578,0.17273981,130.18,130.17,20.76072678]
[1744683172787,0.17273981,130.18,130.17,13.07852678]
[1744683172989,0.17273981,130.18,130.16,13.07852678]
[1744683173890,0.17273981,130.18,130.15,13.07852678]
[1744683174985,0.17273981,130.18,130.17,13.07852678]
[1744683177199,0.17273981,130.18,130.17,20.76072678]
[1744683179300,0.17273981,130.18,130.16,13.07852678]
[1744683179492,0.17273981,130.18,130.15,13.07852678]
[1744683179684,20.93306659,130.18,130.14,13.07852678]
[1744683179884,20.93306659,130.18,130.13,39.41247564]
[1744683180194,0.03,130.18,130.15,13.07852678]
[1744683180505,0.03,130.18,130.17,13.07852678]
[1744683181081,0.03,130.18,130.16,39.07852678]
[1744683181281,0.18567042,130.18,130.16,13.07852678]
[1744683181800,0.18567042,130.18,130.16,20.76122678]
[1744683182104,0.18567042,130.18,130.17,13.07852678]
[1744683183402,0.18567042,130.18,130.17,20.76072678]
[1744683184913,0.18567042,130.18,130.16,13.07852678]
[1744683185096,7.86747042,130.18,130.14,83.0]
[1744683185405,13.07852678,130.17,130.12,13.07852678]
[1744683185709,13.07852678,130.16,130.11,13.14152678]
[1744683185889,13.07852678,130.16,130.12,39.07852678]
[1744683186283,22.5749972,130.18,130.13,13.07852678]
[1744683186507,13.07852678,130.17,130.12,13.07852678]
[1744683186691,13.07852678,130.16,130.11,20.82702678]
[1744683187004,20.76172678,130.16,130.11,20.82702678]
[1744683189607,13.07852678,130.15,130.11,0.063]
[1744683190613,20.76172678,130.16,130.11,20.82712678]
[1744683191193,7.6832,130.16,130.12,13.07852678]
[1744683191390,14.8931972,130.18,130.13,13.07852678]
[1744683191589,7.6834,130.15,130.11,13.14152678]
[1744683191792,20.76192678,130.15,130.11,13.14152678]
[1744683194191,20.76192678,130.15,130.11,0.063]
[1744683194687,13.07852678,130.13,130.11,0.063]
[1744683195317,13.07852678,130.14,130.11,0.063]
[1744683195915,20.76192678,130.15,130.11,0.063]
[1744683196215,20.76192678,130.15,130.11,13.14152678]
[1744683197212,7.6834,130.15,130.12,13.07852678]
[1744683197404,9.49647042,130.18,130.14,13.07852678]
[1744683197811,22.5749972,130.18,130.14,13.07852678]
[1744683198526,7.86747042,130.18,130.14,20.76242678]
[1744683199012,7.86747042,130.18,130.14,13.07852678]
[1744683199318,7.86747042,130.18,130.15,13.07852678]
[1744683200118,7.7118,130.18,130.15,13.07852678]
[1744683200610,7.7118,130.18,130.14,20.76242678]
[1744683201299,0.16498301,130.15,130.14,20.76242678]
[1744683202528,0.16498301,130.15,130.14,13.07852678]
[1744683203034,0.16498301,130.15,130.13,20.76292678]
[1744683203536,0.16498301,130.15,130.13,13.07852678]
[1744683204631,0.16498301,130.15,130.13,20.76302678]
[1744683204928,0.16498301,130.15,130.14,13.07852678]
[1744683206241,0.16498301,130.15,130.13,20.76302678]
[1744683207029,0.16498301,130.15,130.11,18.71264886]
[1744683207220,0.16498301,130.15,130.12,13.07852678]
[1744683207821,0.16498301,130.15,130.12,20.76362678]
[1744683212538,0.16498301,130.15,130.11,26.39814886]
[1744683212723,0.16498301,130.15,130.12,13.07852678]
[1744683213629,0.16498301,130.15,130.11,26.39814886]
[1744683213831,0.16498301,130.15,130.12,20.76342678]
[1744683214028,0.16498301,130.15,130.13,13.07852678]
[1744683215139,0.16498301,130.15,130.13,8.37604361]
[1744683215921,0.16498301,130.15,130.13,16.06054361]
[1744683217014,7.84848301,130.15,130.12,8.37604361]
[1744683217220,7.84848301,130.15,130.11,8.43904361]
[1744683217949,7.84848301,130.15,130.11,16.12474361]
[1744683218143,7.84848301,130.15,130.11,0.063]
[1744683218144,16.22452662,130.15,130.11,0.063]
[1744683219223,7.84848301,130.15,130.11,16.12474361]
[1744683219848,0.16498301,130.15,130.11,16.12474361]
[1744683220235,16.05914361,130.16,130.11,16.12474361]
[1744683221347,0.1489356,130.12,130.11,16.12474361]
[1744683224119,0.1489356,130.12,130.11,35.34303875]
[1744683228769,0.1489356,130.12,130.11,16.12474361]
[1744683228957,0.1489356,130.12,130.11,0.063]
[1744683240365,7.6843,130.14,130.11,0.063]
[1744683241158,7.6836,130.15,130.11,8.43904361]
[1744683241471,0.14268985,130.12,130.11,8.43904361]
[1744683241974,0.14268985,130.12,130.11,0.063]
[1744683242184,16.20393346,130.12,130.11,0.063]
[1744683249874,16.20393346,130.12,130.11,8.43904361]
[1744683249875,0.14268985,130.12,130.11,8.43904361]
[1744683251770,0.14268985,130.12,130.11,16.12484361]
[1744683253797,0.18795223,130.19,130.18,44.64964886]
[1744683254079,0.00186811,130.21,130.19,20.73209514]
[1744683254252,0.03,130.23,130.2,8.37604361]
[1744683255283,0.03,130.23,130.21,13.07375996]
[1744683255785,0.03,130.23,130.22,13.07375996]
[1744683256361,0.03,130.23,130.22,31.72340882]
[1744683257668,0.03,130.23,130.21,7.6798]
[1744683257859,0.03,130.23,130.22,13.07375996]
[1744683259066,0.03,130.23,130.22,31.72340882]
[1744683260086,0.03,130.23,130.22,39.40270882]
[1744683260265,0.03,130.23,130.22,46.75305996]
[1744683261382,0.19553531,130.23,130.22,26.0]
[1744683261790,0.19553531,130.23,130.22,46.75305996]
[1744683262677,0.19553531,130.23,130.22,39.07375996]
[1744683263485,0.19553531,130.23,130.22,46.75305996]
[1744683263884,0.19553531,130.23,130.22,33.6793]
[1744683264060,0.19553531,130.23,130.22,46.75305996]
[1744683264266,0.19553531,130.23,130.22,39.07375996]
[1744683264775,0.19553531,130.23,130.22,46.75305996]
[1744683266980,13.26929527,130.23,130.19,7.6809]
[1744683267164,13.26929527,130.23,130.19,20.75465996]
[1744683267573,7.87423531,130.23,130.18,20.75495996]
[1744683267770,20.94799527,130.23,130.18,20.75495996]
[1744683267958,20.94799527,130.23,130.19,13.07375996]
[1744683269292,0.19553531,130.23,130.19,13.07375996]
[1744683269671,0.19553531,130.23,130.21,13.07375996]
[1744683270596,0.19553531,130.23,130.19,7.6805]
[1744683270886,0.19553531,130.23,130.21,13.07375996]
[1744683271482,0.19553531,130.23,130.22,13.07375996]
[1744683275072,0.19553531,130.23,130.21,7.6797]
[1744683275267,0.19553531,130.23,130.22,8.36410358]
[1744683275472,0.19553531,130.23,130.22,16.04340358]
[1744683276092,0.19553531,130.23,130.22,36.87509872]
[1744683278385,0.1529527,130.25,130.24,26.56864628]
[1744683278583,0.1529527,130.25,130.24,34.93274986]
[1744683280181,0.03,130.26,130.25,26.32714886]
[1744683280374,0.03,130.26,130.25,34.69125244]
[1744683281386,0.17218404,130.26,130.25,34.69125244]
[1744683282894,0.17218404,130.26,130.25,35.25989872]
[1744683285283,0.17218404,130.26,130.25,34.69125244]
[1744683285478,0.17218404,130.26,130.25,27.01375244]
[1744683285692,0.17218404,130.26,130.25,8.36410358]
[1744683286300,0.17218404,130.26,130.25,16.04160358]
[1744683287983,0.17218404,130.26,130.25,8.36410358]
[1744683289403,0.17218404,130.26,130.25,34.69125244]
[1744683291201,0.17218404,130.26,130.23,83.0]
[1744683291388,0.17218404,130.26,130.24,34.36410358]
[1744683291594,0.17218404,130.26,130.25,26.0]
[1744683292390,0.17218404,130.26,130.24,34.36410358]
[1744683295481,0.17218404,130.26,130.24,8.36410358]
[1744683295888,0.17218404,130.26,130.24,34.36410358]
[1744683296489,0.17218404,130.26,130.25,8.36410358]
[1744683297001,0.17218404,130.26,130.24,34.36410358]
[1744683297384,0.17218404,130.26,130.23,8.36410358]
[1744683297589,7.84918404,130.26,130.24,8.36410358]
[1744683298015,0.17218404,130.26,130.24,8.36410358]
[1744683299909,0.17218404,130.26,130.23,8.36410358]
[1744683300101,0.03,130.26,130.23,8.36410358]
[1744683300299,0.03,130.26,130.21,26.0]
[1744683300300,8.36410358,130.24,130.21,26.0]
[1744683300507,7.707,130.26,130.22,8.36410358]
[1744683300695,7.707,130.26,130.23,8.36410358]
[1744683300892,16.07110358,130.26,130.22,8.36410358]
[1744683301411,0.1560736,130.23,130.22,8.36410358]
[1744683301793,0.1560736,130.23,130.21,34.36410358]
[1744683302194,0.1560736,130.23,130.22,8.36410358]
[1744683303008,0.1560736,130.23,130.21,34.36410358]
[1744683303200,7.8348736,130.23,130.21,26.0]
[1744683303708,0.1560736,130.23,130.21,26.0]
[1744683304099,7.8349736,130.23,130.2,8.36410358]
[1744683305310,0.1560736,130.23,130.22,53.01375244]
[1744683305516,0.1560736,130.23,130.22,60.69305244]
[1744683306318,0.1560736,130.23,130.22,62.88039872]
[1744683306688,7.36e-05,130.23,130.22,156.98039872]
[1744683306897,0.17520761,130.27,130.26,45.21829514]
[1744683307098,0.17520761,130.27,130.26,34.36410358]
[1744683307411,0.17520761,130.27,130.25,8.36410358]
[1744683307616,7.85160761,130.27,130.24,8.36410358]
[1744683307912,7.85160761,130.27,130.23,91.36410358]
[1744683308114,16.21571119,130.27,130.22,8.36410358]
[1744683309826,8.36410358,130.24,130.21,26.0]
[1744683310002,8.36410358,130.25,130.21,34.36410358]
[1744683310516,8.36410358,130.26,130.21,34.36410358]
[1744683310715,8.36410358,130.25,130.21,26.0]
[1744683311109,7.6781,130.24,130.21,26.0]
[1744683311509,7.6777,130.25,130.22,8.36410358]
[1744683311708,7.6771,130.26,130.23,8.36410358]
[1744683313524,7.6771,130.26,130.22,16.04320358]
[1744683314224,16.21591119,130.27,130.23,8.36410358]
[1744683314527,16.21591119,130.27,130.24,8.36410358]
[1744683314528,0.17520761,130.27,130.24,8.36410358]
[1744683316501,7.85160761,130.27,130.24,8.36410358]
[1744683316705,7.85160761,130.27,130.23,16.04220358]
[1744683317217,7.85160761,130.27,130.24,8.36410358]
[1744683317417,8.36410358,130.26,130.21,34.36410358]
[1744683317730,8.36410358,130.22,130.18,0.063]
[1744683318025,8.36410358,130.2,130.18,0.063]
[1744683318525,16.04400358,130.21,130.18,0.063]
[1744683319110,20.76154592,130.21,130.18,26.063]
[1744683319311,20.76154592,130.21,130.18,0.063]
[1744683319629,7.6799,130.21,130.18,26.063]
[1744683320316,7.6795,130.22,130.19,13.08164592]
[1744683320506,7.679,130.23,130.2,13.08164592]
[1744683320708,20.76064592,130.23,130.18,13.14464592]
[1744683321130,13.08164592,130.22,130.18,0.063]
[1744683321306,0.15838745,130.19,130.18,0.063]
[1744683322808,0.15838745,130.19,130.18,13.14464592]
[1744683324729,0.15838745,130.19,130.18,20.82624592]
[1744683324935,0.15838745,130.19,130.18,46.82624592]
[1744683325430,0.15838745,130.19,130.18,39.14464592]
[1744683325637,0.15838745,130.19,130.18,46.82624592]
[1744683327709,0.15838745,130.19,130.18,13.14464592]
[1744683328139,0.15838745,130.19,130.18,20.82624592]
[1744683328731,0.15838745,130.19,130.18,46.82624592]
[1744683333434,0.15838745,130.19,130.18,150.69264106]
[1744683333611,0.15838745,130.19,130.18,137.77428698]
[1744683333817,0.15995697,130.21,130.19,19.21829514]
[1744683334024,0.15995697,130.21,130.2,44.8129407]
[1744683334533,0.15995697,130.21,130.2,45.38158698]
[1744683335127,0.15995697,130.21,130.2,31.73129478]
[1744683335441,0.15995697,130.21,130.2,39.41169478]
[1744683335836,0.15995697,130.21,130.2,53.06198698]
[1744683337144,0.15995697,130.21,130.2,39.98034106]
[1744683339441,0.15995697,130.21,130.2,53.06198698]
[1744683340115,0.03,130.27,130.23,18.64964886]
[1744683340320,0.03,130.27,130.25,13.08164592]
[1744683340627,0.03,130.27,130.26,13.08164592]
[1744683341544,0.17965032,130.27,130.26,13.08164592]
[1744683342236,0.17965032,130.27,130.26,20.75854592]
[1744683342548,0.17965032,130.27,130.26,13.08164592]
[1744683344024,0.17965032,130.27,130.25,13.08164592]
[1744683350944,0.17965032,130.27,130.26,13.08164592]
[1744683353446,0.17965032,130.27,130.25,7.6774]
[1744683353753,0.17965032,130.27,130.26,13.08164592]
[1744683354342,0.17965032,130.27,130.24,7.6778]
[1744683354642,0.17965032,130.27,130.24,13.08164592]
[1744683354847,0.17965032,130.27,130.25,13.08164592]
[1744683355152,0.17965032,130.27,130.25,8.36111055]
[1744683355659,7.85595032,130.27,130.23,8.36111055]
[1744683356361,0.17965032,130.27,130.25,8.36111055]
[1744683356537,0.17965032,130.27,130.26,8.36111055]
[1744683357347,0.17965032,130.27,130.26,27.57940569]
[1744683357662,0.17965032,130.27,130.26,35.25630569]
[1744683359152,0.17965032,130.27,130.26,39.95049905]
[1744683360159,0.03,130.27,130.26,39.95049905]
[1744683361352,0.18771523,130.27,130.26,39.95049905]
[1744683361749,0.18771523,130.27,130.26,136.00580296]
[1744683361949,0.19505491,130.28,130.27,0.56864628]
[1744683362143,0.19505491,130.28,130.27,13.62395019]
[1744683363176,0.19505491,130.28,130.27,45.32890296]
[1744683363543,0.19505491,130.28,130.27,32.27359905]
[1744683364064,0.19505491,130.28,130.27,53.00520296]
[1744683364670,0.17904666,130.29,130.28,13.62395019]
[1744683365676,0.17904666,130.29,130.28,21.29965019]
[1744683366578,0.17904666,130.29,130.28,39.94929905]
[1744683366756,0.16821213,130.33,130.31,26.56864628]
[1744683367065,0.16821213,130.33,130.32,18.64964886]
[1744683367370,0.16483681,130.35,130.34,26.0]
[1744683367759,0.16483681,130.35,130.34,39.05530391]
[1744683369780,0.16483681,130.35,130.34,65.94579905]
[1744683369955,0.16483681,130.35,130.34,80.63390296]
[1744683371870,0.03,130.37,130.35,26.88989514]
[1744683372074,0.03,130.37,130.36,32.27359905]
[1744683373274,0.03,130.37,130.36,115.27359905]
[1744683373678,0.03,130.41,130.4,44.933972]
[1744683373856,0.03,130.41,130.4,148.94229905]
[1744683374055,0.03,130.41,130.4,140.70495277]
[1744683374380,0.03,130.41,130.4,148.37365277]
[1744683374880,0.03,130.41,130.4,148.94229905]
[1744683377155,0.03,130.49,130.42,18.64964886]
[1744683377383,0.03,130.49,130.47,13.05530391]
[1744683377560,7.6935,130.49,130.43,0.28432314]
[1744683377889,7.6935,130.49,130.4,18.64964886]
[1744683377890,13.05530391,130.45,130.4,18.64964886]
[1744683378190,13.05530391,130.45,130.4,31.70495277]
[1744683378676,20.72160391,130.44,130.39,13.05530391]
[1744683378909,13.05530391,130.43,130.39,13.05530391]
[1744683379486,13.05530391,130.41,130.35,91.94013609]
[1744683379687,13.05530391,130.41,130.28,39.36536958]
[1744683379688,13.05530391,130.36,130.28,7.9885]
[1744683379881,13.05530391,130.36,130.31,13.05530391]
[1744683380187,13.05530391,130.34,130.33,0.063]
[1744683380557,13.05530391,130.35,130.33,0.063]
[1744683380883,20.72750391,130.34,130.33,0.063]
[1744683381080,39.69150391,130.34,130.33,0.063]
[1744683381286,39.69150391,130.34,130.25,1.5727]
[1744683381287,71.92740782,130.34,130.25,13.05530391]
[1744683381489,13.05530391,130.31,130.26,31.70495277]
[1744683381656,13.05530391,130.3,130.26,31.70495277]
[1744683381855,13.05530391,130.3,130.26,13.05530391]
[1744683382671,13.05530391,130.29,130.22,17.26029607]
[1744683382876,13.05530391,130.29,130.24,13.05530391]
[1744683383278,13.05530391,130.27,130.21,7.6795]
[1744683383484,13.05530391,130.26,130.22,13.05530391]
[1744683383796,13.05530391,130.24,130.2,0.063]
[1744683383980,13.05530391,130.24,130.2,18.71264886]
[1744683384180,12.06,130.29,130.2,31.76795277]
[1744683384383,13.05530391,130.24,130.2,18.71264886]
[1744683384881,20.73360391,130.24,130.2,18.71264886]
[1744683385279,13.05530391,130.22,130.2,0.063]
[1744683385483,13.05530391,130.23,130.2,0.063]
[1744683386186,7.6793,130.22,130.2,0.063]
[1744683386499,13.05530391,130.21,130.2,0.063]
[1744683387568,26.0,130.19,130.18,0.063]
[1744683387767,50.13530391,130.19,130.18,0.063]
[1744683388391,57.81630391,130.19,130.18,0.063]
[1744683389005,0.56864628,130.18,130.15,0.063]
[1744683389209,26.0,130.15,130.14,0.063]
[1744683389371,87.142221,130.15,130.14,0.0001]
[1744683389572,66.18025807,130.15,130.14,0.0001]
[1744683390269,0.56864628,130.14,130.12,0.063]
[1744683390471,39.70656293,130.13,130.12,0.063]
[1744683390701,61.23717214,130.13,130.12,0.063]
[1744683393190,39.70656293,130.13,130.12,0.063]
[1744683393506,11.06,130.13,130.12,0.063]
[1744683393673,18.7446,130.13,130.12,0.063]
[1744683394075,11.06,130.13,130.12,21.02496293]
[1744683394497,11.08,130.17,130.12,21.02496293]
[1744683394698,11.08,130.17,130.14,20.96196293]
[1744683394874,11.08,130.17,130.15,20.96196293]
[1744683395683,11.08,130.17,130.16,20.96196293]
[1744683395910,7.6806,130.2,130.16,20.96196293]
[1744683396099,18.7599,130.21,130.18,20.96196293]
[1744683396271,18.7599,130.21,130.17,20.96196293]
[1744683396590,18.7599,130.21,130.15,20.96196293]
[1744683396591,20.96196293,130.2,130.15,20.96196293]
[1744683396895,7.6806,130.2,130.17,20.96196293]
[1744683397086,11.08,130.21,130.19,20.96196293]
[1744683397289,11.08,130.21,130.15,0.42648471]
[1744683397290,11.08,130.21,130.18,20.96196293]
[1744683397594,20.96196293,130.19,130.14,20.96196293]
[1744683397791,18.7599,130.21,130.17,20.96196293]
[1744683397972,28.64116293,130.23,130.18,20.96196293]
[1744683398181,20.96196293,130.22,130.17,20.96196293]
[1744683398697,20.96196293,130.22,130.18,20.96196293]
[1744683398892,28.64186293,130.21,130.16,20.96196293]
[1744683399194,20.96196293,130.17,130.12,0.063]
[1744683399376,20.96196293,130.2,130.12,0.063]
[1744683399377,20.96196293,130.16,130.12,0.063]
[1744683399693,20.96196293,130.15,130.12,0.063]
[1744683399995,20.96196293,130.16,130.12,0.063]
[1744683400694,20.96196293,130.16,130.12,21.02496293]
[1744683400893,28.64426293,130.17,130.12,21.02496293]
[1744683401286,20.96196293,130.16,130.12,21.02496293]
[1744683401593,0.14412025,130.13,130.12,21.02496293]
[1744683402093,21.10608318,130.13,130.12,0.063]
[1744683402998,28.79068318,130.13,130.12,0.063]
[1744683403201,61.40129239,130.13,130.12,0.063]
[1744683403580,39.87068318,130.13,130.12,0.063]
[1744683403794,61.40129239,130.13,130.12,0.063]
[1744683405587,39.87068318,130.13,130.12,0.063]
[1744683406483,61.40129239,130.13,130.12,0.063]
[1744683407099,81.05094125,130.13,130.12,0.0001]
[1744683407587,40.18025807,130.12,130.11,0.0001]
[1744683409084,21.53060921,130.12,130.11,0.0001]
[1744683409302,40.18025807,130.12,130.11,0.0001]
[1744683409493,48.86545807,130.12,130.11,0.0001]
[1744683410087,46.28432314,130.08,130.07,0.063]
[1744683410398,0.42648471,130.06,130.05,0.063]
[1744683410581,42.49257214,130.06,130.05,0.063]
[1744683411008,42.49257214,130.06,130.04,0.063]
[1744683411186,21.53060921,130.05,130.04,0.063]
[1744683411684,29.21990921,130.05,130.04,0.063]
[1744683412080,0.56864628,130.04,130.03,0.063]
[1744683412308,40.18025807,130.04,130.03,0.0001]
[1744683413219,26.0,130.01,129.98,0.063]
[1744683413517,65.73366293,130.01,129.98,0.063]
[1744683414207,84.95195807,130.01,129.98,0.063]
[1744683414393,66.30230921,130.01,129.98,0.063]
[1744683414897,65.73366293,130.01,129.98,0.063]
[1744683416611,1.28432314,130.09,130.0,21.02496293]
[1744683416801,20.96196293,130.05,130.0,21.02496293]
[1744683418012,28.65166293,130.05,130.0,21.02496293]
[1744683418504,28.65166293,130.05,130.0,28.71716293]
[1744683419011,11.08,130.07,130.03,20.96196293]
[1744683419208,20.96196293,130.06,130.02,27.47076293]
[1744683419405,32.04196293,130.07,130.02,27.47076293]
[1744683420115,39.73016293,130.07,130.02,35.16156293]
[1744683421415,0.14258332,130.03,130.02,35.16156293]
[1744683421821,0.14258332,130.03,130.0,21.02496293]
[1744683421994,0.14258332,130.03,130.02,20.96196293]
[1744683422335,0.14258332,130.03,130.02,40.18025807]
[1744683422614,0.16242541,130.04,130.03,0.56864628]
[1744683422798,0.16242541,130.04,130.03,39.61161179]
[1744683422992,0.16242541,130.04,130.03,20.96196293]
[1744683423512,0.16242541,130.04,130.03,47.87075807]
[1744683423700,0.16647837,130.05,130.04,24.71084886]
[1744683423903,0.13987364,130.06,130.04,47.84275807]
[1744683424210,0.13987364,130.06,130.05,0.56864628]
[1744683424516,0.13987364,130.06,130.05,21.53060921]
[1744683427014,0.13987364,130.06,130.05,29.21990921]
[1744683429717,0.13987364,130.06,130.04,7.6625]
[1744683429922,28.79063657,130.06,130.01,13.7232]
[1744683430097,28.79063657,130.06,130.01,34.68516293]
[1744683430296,28.79063657,130.06,130.02,20.96196293]
[1744683431204,20.96196293,130.04,130.0,22.54356293]
[1744683431410,20.96196293,130.02,130.0,0.063]
[1744683433219,20.96196293,130.01,130.0,0.063]
[1744683433713,28.65326293,130.02,130.0,0.063]
[1744683433908,20.96196293,130.01,130.0,0.063]
[1744683434706,28.65326293,130.02,130.0,0.063]
[1744683436416,20.96196293,130.02,130.0,0.063]
[1744683436622,11.08,130.03,130.0,21.02496293]
[1744683436921,20.96196293,130.02,130.0,0.063]
[1744683437125,39.73256293,130.03,130.0,0.063]
[1744683438027,20.96196293,130.01,130.0,0.063]
[1744683438525,20.96196293,130.02,130.0,0.063]
[1744683440003,7.6917,130.01,130.0,0.063]
[1744683440221,20.96196293,130.01,130.0,0.063]
[1744683441328,7.6911,130.02,130.0,0.063]
[1744683441524,0.16191593,130.01,130.0,0.063]
[1744683442030,0.16191593,130.01,130.0,21.02496293]
[1744683442425,0.16191593,130.01,130.0,0.063]
[1744683445830,0.16191593,130.01,130.0,39.67461179]
[1744683446027,0.15689689,130.02,130.01,2.07114628]
[1744683446328,0.15689689,130.02,130.01,1.5025]
[1744683446531,0.15689689,130.02,130.0,27.23756293]
[1744683446913,0.15689689,130.02,130.01,20.96196293]
[1744683447409,0.15689689,130.02,130.0,27.23756293]
[1744683450022,0.15689689,130.02,130.0,0.063]
[1744683450023,7.84809689,130.02,130.0,0.063]
[1744683450203,28.81005982,130.02,130.0,0.063]
[1744683450808,7.84809689,130.02,130.0,0.063]
[1744683451027,28.81005982,130.02,130.0,0.063]
[1744683451229,20.96196293,130.01,130.0,0.063]
[1744683452625,29.22230921,130.01,130.0,0.0001]
[1744683452825,49.45515807,130.01,130.0,0.0001]
[1744683453510,26.0,129.98,129.97,0.063]
[1744683453834,58.1841245,129.98,129.96,0.063]
[1744683454028,21.38844764,129.97,129.94,0.063]
[1744683454336,20.96196293,129.95,129.94,0.063]
[1744683454633,28.65716293,129.95,129.94,0.063]
[1744683454932,20.96196293,129.95,129.94,0.063]
[1744683455729,20.96196293,129.96,129.94,0.063]
[1744683455930,28.65686293,129.96,129.94,0.063]
[1744683456321,20.96196293,129.95,129.94,0.063]
[1744683458133,28.65716293,129.95,129.94,0.063]
[1744683458340,39.73716293,129.95,129.94,0.063]
[1744683458642,7.6949,129.96,129.94,0.063]
[1744683458848,28.65686293,129.96,129.94,0.063]
[1744683459023,20.96196293,129.96,129.94,0.063]
[1744683459221,32.04196293,129.97,129.94,0.063]
[1744683459839,11.08,129.97,129.94,21.02496293]
[1744683460226,20.96196293,129.98,129.94,0.063]
[1744683460747,20.96196293,129.98,129.94,7.7587]
[1744683461459,0.15621231,129.95,129.94,7.7587]